Cogmind - Beta 11.1 @@@ ROGUE MODE // 2022.09.25 @ 15:04:02 Player: tourteau Result: Destroyed by as-32043 with Assembled Rifle Performance ------------- Evolutions (0) 0 Regions Visited (2) 400 Robots Destroyed (16) 80 Value Destroyed (378) 378 Prototype IDs (0) 0 Alien Tech Used (0) 0 Bonus (0) 0 TOTAL SCORE: 858 Bonus ------- None Cogmind --------- Core Integrity 0/250 Matter 254/300 Energy 100/100 System Corruption 0% Temperature Cool (0) Movement Walking (120) Location -10/Mines Parts ------- > --- POWER (1) -------- (None) > --- PROPULSION (2) --- Aluminum Leg > --- UTILITY (2) ------ (None) > --- WEAPON (2) ------- (None) > --- INVENTORY (5) ---- Improved Heat Sink Small Storage Unit Large Matter Pod (119) Structural Scanner Peak State ------------ > --- POWER ------------ Ion Engine > --- PROPULSION ------- Aluminum Leg Aluminum Leg > --- UTILITY ---------- Small Storage Unit Sensor Array > --- WEAPON ----------- Grenade Launcher Datajack > --- INVENTORY -------- Ion Engine Heat Sink Large Matter Pod Structural Scanner Signal Interpreter Field Recycling Unit EM Pulse Gun Particle Gun [Rating: 8] Favorites ----------- Power Ion Engine Engine Ion Engine Propulsion Aluminum Leg Leg Aluminum Leg Utility Small Storage Unit Device Sensor Array Storage Small Storage Unit Processor Signal Interpreter Weapon Small Laser Energy Gun Small Laser Launcher Grenade Launcher Special Melee Weapon Datajack Build | -11 -10 -10 ------- Run | Scr Mat Min Slots Evolved . | . . . Power . | . . . Propulsion . | . . . Utility . | . . . Weapon . | . . . Parts Attached 18 | 8 5 5 Power 3 | 2 . 1 Engine 3 | 2 . 1 Core . | . . . Reactor . | . . . Propulsion 3 | 2 . 1 Treads . | . . . Leg 3 | 2 . 1 Wheel . | . . . Hover . | . . . Flight . | . . . Utility 6 | 2 3 1 Device 2 | 1 1 . Storage 3 | 1 2 . Processor 1 | . . 1 Hackware . | . . . Protection . | . . . Artifact . | . . . Weapon 6 | 2 2 2 Energy Gun 4 | 2 . 2 Energy Cannon . | . . . Ballistic Gun . | . . . Ballistic Cannon . | . . . Launcher 1 | . 1 . Special Weapon . | . . . Impact Weapon . | . . . Slashing Weapon . | . . . Piercing Weapon . | . . . Special Melee Weapon 1 | . 1 . Unidentified Prototypes . | . . . Parts Lost 9 | . . 9 Power 2 | . . 2 Propulsion 2 | . . 2 Utility 2 | . . 2 Weapon 3 | . . 3 Highest Loss Streak 4 | . . 4 To Critical Strikes . | . . . Average Slot Usage (%) 94 | . 99 91 Engine 13 | . 14 12 Leg 27 | . 28 26 Device 13 | . 14 12 Storage 12 | . 13 12 Energy Gun 9 | . 19 2 Launcher 8 | . 5 11 Special Melee Weapon 8 | . 3 11 Naked Turns . | . . . Heaviest Build 15 | 13 15 15 Greatest Support 20 | 20 20 20 Greatest Overweight (x) 1 | 1 . . Average Overweight (x) . | . . . Largest Inventory Capacity 15 | 8 15 8 Average Capacity 7 | 7 7 7 Most Carried 8 | 7 8 8 Average Carried 7 | 6 7 7 Final Capacity 8 | 8 8 5 Final Carried 8 | 7 8 4 Class Distribution -------------------- 98% | Mutant Dominant Class ---------------- Mutant | -10/Materials Mutant | -10/Mines Resources | -11 -10 -10 ----------- Run | Scr Mat Min Matter Collected 603 | 280 93 230 Remotely . | . . . Salvage Created 457 | 118 93 246 Parts 40 | 8 15 17 Haulers Intercepted . | . . . Recyclers Shooed 1 | . 1 . Parts Field Recycled . | . . . Retrieved Matter . | . . . Parts Self-Destructed . | . . . Prevented . | . . . Kills | -11 -10 -10 ------- Run | Scr Mat Min Combat Hostiles Destroyed 20 | . 3 17 Guns 6 | . 3 3 AOE 14 | . . 14 Classes Destroyed 6 | 2 2 2 Tunneler 1 | 1 . . Recycler 1 | 1 . . Watcher 2 | . 2 . Swarmer 6 | . 3 3 Grunt 6 | . . 6 Assembled 8 | . . 8 Best Kill Streak 6 | 2 4 6 Combat Bots Only 6 | . 3 6 Max Kills in Single Turn 2 | 2 1 2 Gunslinging . | . . . Exploded 2 | . . 2 Melee . | . . . Uniques/NPCs Destroyed . | . . . Combat | -11 -10 -10 -------- Run | Scr Mat Min Damage Taken 889 | . 122 767 Core 255 | . 28 227 Absorbed by Shields . | . . . Core Remaining (%) 100 | 100 . . Volleys Fired 50 | 2 12 36 Largest 2 | 2 2 1 Hottest 80 | 80 80 65 Shots Fired 64 | 4 24 36 Gun 44 | 4 24 16 Cannon . | . . . Launcher 20 | . . 20 Special . | . . . Kinetic . | . . . Thermal 44 | 4 24 16 Explosive 20 | . . 20 Electromagnetic . | . . . Robot Hit Streak 12 | 3 6 12 Robot Miss Streak 4 | . 3 4 Penetration Max . | . . . Secondary Targets . | . . . Shots Hit Robots 43 | 3 15 25 Core Hits 42 | 3 5 34 Critical Kills . | . . . Critical Parts Destroyed . | . . . Critical Strikes . | . . . Melee Attacks 10 | . 4 6 Impact . | . . . Slashing . | . . . Piercing . | . . . Sneak Attacks 8 | . 4 4 Combat Hostiles . | . . . Follow-up Attacks . | . . . Damage Inflicted 1381 | 46 124 1211 Guns 329 | 46 124 159 Cannons . | . . . Explosions 1052 | . . 1052 Melee . | . . . Ramming . | . . . Kinetic . | . . . Thermal 329 | 46 124 159 Explosive 1052 | . . 1052 Electromagnetic . | . . . Impact . | . . . Slashing . | . . . Piercing . | . . . Highest Corruption . | . . . Average Corruption . | . . . Corruption Purged . | . . . Corruption Blocked . | . . . Overload Shots . | . . . Overflow Damage 28 | . . 28 Projectiles . | . . . Explosions 28 | . . 28 Melee . | . . . Knockbacks . | . . . Impact . | . . . Kinetic . | . . . Secondary . | . . . Self-Inflicted Damage 112 | . . 112 Shots 5 | . . 5 Rammed . | . . . Targets Rammed 1 | . . 1 Kicked 1 | . . 1 Crushed . | . . . Highest Temperature 294 | 36 162 294 Average Temperature 79 | 20 68 92 Received Heat Transfer 296 | . . 296 Siege Activations . | . . . Robots Corrupted . | . . . Combat Hostiles . | . . . Parts Fried . | . . . Impact Corruptions . | . . . Robots Melted . | . . . Combat Hostiles . | . . . Parts Melted . | . . . Heat Transferred 745 | 100 275 370 Parts Sabotaged . | . . . Parts Stolen . | . . . Parts Stripped . | . . . Power Chain Reactions . | . . . Missiles Intercepted . | . . . Alert | -11 -10 -10 ------- Run | Scr Mat Min Peak Influence 404 | 10 129 404 Initial . | . . . Average 107 | 5 37 231 Maximum Alert Level 2 | . . 2 Low Security (%) 71 | 100 100 31 Level 1 23 | . . 56 Level 2 4 | . . 11 Level 3 . | . . . Level 4 . | . . . Level 5 . | . . . High Security . | . . . Max Security . | . . . Squads Dispatched . | . . . Investigation . | . . . Extermination . | . . . Reinforcement . | . . . Assault . | . . . Garrison . | . . . Intercept . | . . . Searches Triggered . | . . . Construction Impeded . | . . . Haulers Reinforced . | . . . Active Scanning Responses . | . . . Cargo Convoy Interrupts . | . . . Stealth | -11 -10 -10 --------- Run | Scr Mat Min Distress Signals . | . . . Communications Jammed . | . . . Distress Signals . | . . . Times Spotted 26 | . 6 20 Peak Tracking Total 6 | . 3 6 Tactical Retreats 5 | . . 5 Traps | -11 -10 -10 ------- Run | Scr Mat Min Traps Triggered . | . . . Indirectly . | . . . Trap Hack Attempts . | . . . Triggered . | . . . Disarmed . | . . . Reprogrammed . | . . . Reused . | . . . Traps Extracted . | . . . Installed . | . . . Triggered . | . . . Machines | -11 -10 -10 ---------- Run | Scr Mat Min Machines Disabled 3 | . . 3 Max in Single Turn 1 | . . 1 Machines Sabotaged . | . . . Garrisons Compromised . | . . . Overloaded Fab Kills . | . . . Hacking | -11 -10 -10 --------- Run | Scr Mat Min Machines Accessed 6 | . 6 . Terminals 4 | . 4 . Fabricators . | . . . Repair Stations . | . . . Recycling Units 2 | . 2 . Scanalyzers . | . . . Garrison Access . | . . . Total Hacks 11 | . 11 . Successful 8 | . 8 . Failed 3 | . 3 . Catastrophic . | . . . Database Lockouts . | . . . Manual . | . . . Terminals 8 | . 8 . Fabricators . | . . . Repair Stations . | . . . Recycling Units 3 | . 3 . Scanalyzers . | . . . Garrison Access . | . . . Terminal Hacks 6 | . 6 . Record 2 | . 2 . Emergency Access Points 1 | . 1 . Locate Traps 2 | . 2 . Zone Layout 1 | . 1 . Fabricator Hacks . | . . . Repair Station Hacks . | . . . Recycling Unit Hacks 2 | . 2 . Report Inventory 2 | . 2 . Scanalyzer . | . . . Garrison Access Hacks . | . . . Unauthorized Hacks . | . . . Terminals . | . . . Fabricators . | . . . Repair Stations . | . . . Recycling Units . | . . . Scanalyzers . | . . . Garrison Access . | . . . Data Cores Recovered . | . . . Used . | . . . Hacking Detections 6 | . 6 . Full Trace Events . | . . . Feedback Events . | . . . Feedback Blocked . | . . . Robot Schematics Acquired . | . . . Robots Built . | . . . Authchips . | . . . Time . | . . . Total Robot Build Rating . | . . . Part Schematics Acquired . | . . . Parts Built . | . . . Authchips . | . . . Time . | . . . Total Part Build Rating . | . . . Parts Repaired . | . . . Time . | . . . Parts Recycled . | . . . Recycled Matter . | . . . Retrieved Matter . | . . . Retrieved Components . | . . . Parts Scanalyzed . | . . . Part Schematics Acquired . | . . . Parts Damaged . | . . . Bothacking | -11 -10 -10 ------------ Run | Scr Mat Min Used RIF Installer . | . . . Robots Hacked 5 | . 3 2 Non-combat 4 | . 3 1 Combat 1 | . . 1 Robot Hacks Applied 7 | . 4 3 parse_system 5 | . 3 2 no_distress 2 | . 1 1 Relay Couplers Released . | . . . Fabnet Peak Effective % . | . . . Robots Rewired . | . . . Allies Hacked . | . . . Hacks Repelled . | . . . Allies | -11 -10 -10 -------- Run | Scr Mat Min Total Allies . | . . . Largest Group . | . . . Highest-Rated Group . | . . . Highest-Rated Ally . | . . . Total Orders . | . . . Ally Attacks . | . . . Total Damage . | . . . Kills . | . . . Allies Corrupted . | . . . Allies Melted . | . . . Intel | -11 -10 -10 ------- Run | Scr Mat Min Robot Analysis Total . | . . . Derelict Logs Recovered 1 | . . 1 Drone Launches . | . . . Drone Recoveries . | . . . Exploration | -11 -10 -10 ------------- Run | Scr Mat Min Turns Passed 1955 | 581 570 804 Spaces Moved 1047 | 144 396 507 Core 8 | 8 . . Treads . | . . . Legs 1039 | 136 396 507 Wheels . | . . . Hover . | . . . Flight . | . . . Fastest Speed 50 | 50 120 120 Average Speed 119 | 118 120 120 Slowest Speed 120 | 120 120 120 Overloaded Moves . | . . . Propulsion Burnouts . | . . . Robots Hopped . | . . . Cave-ins Triggered . | . . . Exploration Rate (%) 46 | 16 44 79 Regions Visited 2 Branch Regions 1 Pre-discovered Areas . | . . . Known Exits Taken . | . . . Unknown Exits Taken 2 | 1 1 . Scrap Searched . | . . . Spaces Dug 32 | . . 32 Terrain Destroyed 131 | . . 131 Melee . | . . . Projectile . | . . . AOE 131 | . . 131 Terrain Rammed . | . . . Walls Destroyed . | . . . Machines Disabled . | . . . Actions | -11 -10 -10 --------- Run | Scr Mat Min Total 1680 | 547 467 666 Wait 517 | 385 32 100 Move 1045 | 143 395 507 Hop . | . . . Pick Up 21 | 7 10 4 Fast Attach 12 | 8 3 1 Attach 3 | . . 3 Detach 2 | 1 . 1 Swap 3 | . 2 1 Drop 16 | 1 9 6 Fire 50 | 2 12 36 Melee 10 | . 4 6 Ram . | . . . Kick 1 | . . 1 Crush . | . . . Escape Stasis . | . . . Rewire . | . . . Trap . | . . . Miscellaneous . | . . . Route ------- -11/Scrapyard -10/Materials -10/Mines (discovered 1 exit: [*Mat]) History --------- Turn | Location | Event 21 | -11/Scrapyard | Discovered new exit (range 16) 582 | -11/Scrapyard | Entered Materials 583 | -10/Materials | Build established: Mutant 1095 | -10/Materials | Discovered new exit (range 13) 1152 | -10/Materials | Entered Mines 1562 | -10/Mines | Discovered new exit (range 3) 1765 | -10/Mines | Assembled infested the area 1770 | -10/Mines | Assisted by a Guerilla fighting off Assembled 1837 | -10/Mines | Lost 4 parts (1p1n2w) 1890 | -10/Mines | Core integrity fell below 50% 1943 | -10/Mines | Core integrity fell below 20% 1956 | -10/Mines | Destroyed by as-32043 with Assembled Rifle Last Messages --------------- U-05 Engineer lays Concrete. U-05 Engineer builds a Wall. U-05 Engineer lays Concrete. Signal Interpreter destroyed. U-05 Engineer lays Concrete. as-65937 destroyed. U-05 Engineer lays Concrete. Acquired 17 matter. U-05 Engineer builds a Wall. U-05 Engineer lays Concrete. Sensor Array destroyed. as-17314 destroyed. Acquired 16 matter. U-05 Engineer lays Concrete. Ion Engine destroyed. U-05 Engineer suffers critical hit (Burn). U-05 Engineer destroyed. Aluminum Leg destroyed. Particle Gun destroyed. [Achievement: First Step to Greatness] Map ----- +----------------------------------------------------+ | | | | | | | | | | | | | | | | | | | | | | | | | | | | | ?????????????????????????????????????????????????? | | ?????????????????????????????????????????????????? | | ??????????????????????#######?????????????####???? | | ?????????????????????## ##???????????# ##### | | ?????????????????????# ####?#####?# | | ?????????????????????# ### ## " | | ?????????????????????## #????? | | ??????????????????????# a %| #?????? | | ?????????????????????## a ##?????? | | ?????????????????????# ##### #####??????? | | ?????????????????????# #???## #??????????? | | ?????????????????????# @ % #????# #??????????? | | ????????????????????# %% ##????# #??????????? | | ????????????????????# #????# #??????????? | | ????????????????????# # ##????# #??????????? | | ????????????????????# % ####?????# #??????????? | | ????????????????????# !% ##????????#% #??????????? | | ????????????????????##%% ??????????#* #??????????? | | ?????????????????????%%! ??????????# #??????????? | | ????????????????????# = ??????????# #??????????? | | ????????????????????## #??????????# ####???????? | | ?????????????????????# ???????????# #???????? | | ????????????????????? ???????????# ###### | | ?????????????????????###???????????#### | | ????????????????????????????????????## #### | | ????????????????????????????????????# ##????? | | ?????????????????????????????????#### # #????? | | ?????????????????????????????????# # # ##????? | | #????????????????????????????????# # ##???? | | #????????????????????????????????# #???? | | #????????????????????????????????# ####### | | ##???????????????????????????????# | | ##????????????????????????????### ## | | #????????????????????????????# ## #### | | #??##?????????????????######## ## ## #??? | | ????????????????# ! ## ## #??? | +----------------------------------------------------+ Best States ------------- Heat Dissipation 25 Energy Generation 10 Energy Capacity 250 Matter Stores 300 Matter Capacity 300 Sight Range 16 Robot Scan Range 14 Terrain Scan Density 10 Evasion (%) 55 Item Schematics ----------------- None Robot Schematics ------------------ None Fabricated ------------ Nothing Alien Tech Used ----------------- None Achievements -------------- First Step to Greatness Challenges ------------ None Game ------ Seed TractorCargoTreads Manual? 0 Play Time 00:32:30 Cumulative 5.4 hours Start 2022.09.25 @ 14:35:06 End 2022.09.25 @ 15:04:02 Sessions 1 Manual Loads 0 Difficulty Rogue Special Mode None Game No. 7 Rogue 7 Adventurer 0 Explorer 0 Win Type - Total 0 Types 0/0/0/0/0/0/0/0/0 Lore% 2 Gallery% 8 Achievement% 3 Wizard Run 0 Options --------- ASCII 0 Keyboard 1 Movement Numpad Keybinds 0 Fullscreen 1 Font 18/SmallcapsGlow Map View 76x50 Tactical HUD 0 Map Filters NONE Filters NONE Steam 1 RUN: 0932a348-8d27-455f-90ea-82d2e2a6e2b1